[Event "*** SCC Grand Prix: Titled Tuesday Blitz"]
[Site "Chess.com"]
[Date "2020.06.02"]
[Round "4"]
[White "Giraffe_Chess"]
[Black "WiktoriaPOL"]
[Result "1-0"]
[WhiteElo "2379"]
[BlackElo "2016"]
[TimeControl "180+1"]
[EndTime "10:41:27 PDT"]
[Termination "Giraffe_Chess won on time"]

1. d4 {[%clk 0:03:00.9]} 1... Nf6 {[%clk 0:02:59.7]} 2. c4 {[%clk 0:03:00.9]}
2... g6 {[%clk 0:02:59.8]} 3. Nc3 {[%clk 0:03:00.7]} 3... d5 {[%clk 0:03:00.2]}
4. cxd5 {[%clk 0:03:01.6]} 4... Nxd5 {[%clk 0:03:00.3]} 5. Bd2 {[%clk
0:03:02.1]} 5... Bg7 {[%clk 0:02:58.2]} 6. e4 {[%clk 0:03:02.2]} 6... Nb6 {[%clk
0:02:57.9]} 7. Be3 {[%clk 0:03:02.6]} 7... O-O {[%clk 0:02:56.5]} 8. Nf3 {[%clk
0:03:00.7]} 8... Nc6 {[%clk 0:02:48.1]} 9. d5 {[%clk 0:02:43.1]} 9... Ne5 {[%clk
0:02:43.3]} 10. Nxe5 {[%clk 0:02:42.9]} 10... Bxe5 {[%clk 0:02:44.2]} 11. Bd4
{[%clk 0:02:40.9]} 11... Bxd4 {[%clk 0:02:41.8]} 12. Qxd4 {[%clk 0:02:41.8]}
12... c6 {[%clk 0:02:29.7]} 13. Be2 {[%clk 0:02:38.8]} 13... cxd5 {[%clk
0:02:29.7]} 14. exd5 {[%clk 0:02:39.7]} 14... e6 {[%clk 0:01:57.1]} 15. d6
{[%clk 0:02:23.2]} 15... e5 {[%clk 0:01:57]} 16. Qxe5 {[%clk 0:02:13.3]} 16...
Bg4 {[%clk 0:01:50.9]} 17. Ne4 {[%clk 0:02:04.6]} 17... Nd7 {[%clk 0:01:37.9]}
18. Qe7 {[%clk 0:01:38]} 18... Bxe2 {[%clk 0:01:33.3]} 19. Qxd7 {[%clk
0:01:27.2]} 19... Qxd7 {[%clk 0:01:02.4]} 20. Nf6+ {[%clk 0:01:26.2]} 20... Kg7
{[%clk 0:01:02.9]} 21. Nxd7 {[%clk 0:01:27.1]} 21... Rfe8 {[%clk 0:00:56.8]} 22.
Nc5 {[%clk 0:01:06.3]} 22... Bf3+ {[%clk 0:00:54.5]} 23. Kf1 {[%clk 0:01:01.7]}
23... Bc6 {[%clk 0:00:50.6]} 24. f3 {[%clk 0:00:48.3]} 24... b6 {[%clk
0:00:47.9]} 25. Nb3 {[%clk 0:00:42.8]} 25... Rad8 {[%clk 0:00:30.2]} 26. Rd1
{[%clk 0:00:41.6]} 26... Bb5+ {[%clk 0:00:22.9]} 27. Kf2 {[%clk 0:00:41.7]}
27... Re2+ {[%clk 0:00:23.1]} 28. Kg3 {[%clk 0:00:41.7]} 28... Rxb2 {[%clk
0:00:22.6]} 29. Nd4 {[%clk 0:00:40.8]} 29... Ba4 {[%clk 0:00:19.4]} 30. Rd3
{[%clk 0:00:32.1]} 30... Rxa2 {[%clk 0:00:17.7]} 31. Re1 {[%clk 0:00:31.5]}
31... Kf6 {[%clk 0:00:13.8]} 32. Ne2 {[%clk 0:00:22.2]} 32... Bb5 {[%clk
0:00:13.1]} 33. Re3 {[%clk 0:00:20.6]} 33... Bxe2 {[%clk 0:00:12.5]} 34. R3xe2
{[%clk 0:00:21.5]} 34... Rxe2 {[%clk 0:00:12.5]} 35. Rxe2 {[%clk 0:00:22.4]}
35... Rxd6 {[%clk 0:00:13]} 36. Ra2 {[%clk 0:00:23.3]} 36... a5 {[%clk
0:00:12.1]} 37. Ra4 {[%clk 0:00:23.6]} 37... h5 {[%clk 0:00:11.8]} 38. h4 {[%clk
0:00:23.8]} 38... Kf5 {[%clk 0:00:10.1]} 39. Kh3 {[%clk 0:00:23.3]} 39... Rc6
{[%clk 0:00:09.1]} 40. Kg3 {[%clk 0:00:23.6]} 40... Rc5 {[%clk 0:00:08.5]} 41.
Rf4+ {[%clk 0:00:23.5]} 41... Ke6 {[%clk 0:00:08.1]} 42. Re4+ {[%clk 0:00:24.4]}
42... Re5 {[%clk 0:00:08.2]} 43. Ra4 {[%clk 0:00:24.4]} 43... f6 {[%clk
0:00:07.2]} 44. Kf4 {[%clk 0:00:24.8]} 44... Rb5 {[%clk 0:00:06]} 45. Re4+
{[%clk 0:00:24.4]} 45... Kf7 {[%clk 0:00:06.1]} 46. Re3 {[%clk 0:00:23.3]} 46...
Rb4+ {[%clk 0:00:06.1]} 47. Kg3 {[%clk 0:00:23.7]} 47... a4 {[%clk 0:00:06.4]}
48. Rc3 {[%clk 0:00:23.4]} 48... b5 {[%clk 0:00:06.3]} 49. Rc7+ {[%clk
0:00:23.3]} 49... Ke6 {[%clk 0:00:05.6]} 50. Rc6+ {[%clk 0:00:23.7]} 50... Kf7
{[%clk 0:00:05.7]} 51. Rc7+ {[%clk 0:00:24]} 51... Kf8 {[%clk 0:00:05.9]} 52.
Rc8+ {[%clk 0:00:24.4]} 52... Kg7 {[%clk 0:00:06.2]} 53. Rc7+ {[%clk 0:00:24.7]}
53... Kh6 {[%clk 0:00:06.7]} 54. Rc6 {[%clk 0:00:24]} 54... f5 {[%clk
0:00:05.1]} 55. Rc8 {[%clk 0:00:20.8]} 55... Rb2 {[%clk 0:00:03.8]} 56. Kf4
{[%clk 0:00:20.4]} 56... Rxg2 {[%clk 0:00:03.2]} 57. Ke5 {[%clk 0:00:20.9]}
57... Kg7 {[%clk 0:00:01.9]} 58. Rc7+ {[%clk 0:00:20.8]} 58... Kf8 {[%clk
0:00:01.9]} 59. Kf6 {[%clk 0:00:21.7]} 59... Ke8 {[%clk 0:00:02.8]} 60. Rg7
{[%clk 0:00:21.5]} 60... Kd8 {[%clk 0:00:03]} 61. Ke6 {[%clk 0:00:21.9]} 61...
Kc8 {[%clk 0:00:02.8]} 62. Kd6 {[%clk 0:00:22.4]} 62... Rd2+ {[%clk 0:00:02.9]}
63. Kc6 {[%clk 0:00:22.8]} 63... Rc2+ {[%clk 0:00:03.6]} 64. Kxb5 {[%clk
0:00:23]} 64... a3 {[%clk 0:00:03.9]} 65. Rxg6 {[%clk 0:00:19.9]} 65... a2
{[%clk 0:00:03.9]} 66. Ra6 {[%clk 0:00:20.1]} 66... Kc7 {[%clk 0:00:03.1]} 67.
Kb4 {[%clk 0:00:20.5]} 67... Kd7 {[%clk 0:00:02.4]} 68. Kb3 {[%clk 0:00:20.7]}
68... Rh2 {[%clk 0:00:01.9]} 69. Kc3 {[%clk 0:00:20.9]} 69... Rg2 {[%clk
0:00:01.9]} 70. Kd3 {[%clk 0:00:20.8]} 70... Rh2 {[%clk 0:00:02.3]} 71. Ke3
{[%clk 0:00:21.1]} 71... Rxh4 {[%clk 0:00:02.5]} 72. Rxa2 {[%clk 0:00:20.5]}
72... Rb4 {[%clk 0:00:02.9]} 73. Ra5 {[%clk 0:00:19.8]} 73... f4+ {[%clk
0:00:03.8]} 74. Kf2 {[%clk 0:00:19.8]} 74... h4 {[%clk 0:00:04.2]} 75. Kg2
{[%clk 0:00:20.1]} 75... Rb2+ {[%clk 0:00:03.9]} 76. Kh3 {[%clk 0:00:20.4]}
76... Rf2 {[%clk 0:00:04.1]} 77. Ra3 {[%clk 0:00:20.3]} 77... Ke6 {[%clk
0:00:03]} 78. Kxh4 {[%clk 0:00:20.7]} 78... Kf5 {[%clk 0:00:03.7]} 79. Ra5+
{[%clk 0:00:20.8]} 79... Kf6 {[%clk 0:00:03.7]} 80. Kg4 {[%clk 0:00:21.7]} 80...
Rf1 {[%clk 0:00:03.4]} 81. Kxf4 {[%clk 0:00:22.1]} 81... Kf7 {[%clk 0:00:03.7]}
82. Ra6 {[%clk 0:00:22.6]} 82... Rb1 {[%clk 0:00:02.9]} 83. Kg4 {[%clk
0:00:22.6]} 83... Rb4+ {[%clk 0:00:02.7]} 84. f4 {[%clk 0:00:23]} 84... Kf8
{[%clk 0:00:02.8]} 85. Kf5 {[%clk 0:00:23.3]} 85... Rb5+ {[%clk 0:00:02.5]} 86.
Kf6 {[%clk 0:00:23.7]} 86... Kg8 {[%clk 0:00:02.1]} 87. Ra8+ {[%clk 0:00:23.5]}
87... Kh7 {[%clk 0:00:01.8]} 88. f5 {[%clk 0:00:23.8]} 1-0

[Event "*** SCC Grand Prix: Titled Tuesday Blitz"]
[Site "Chess.com"]
[Date "2020.06.02"]
[Round "4"]
[White "Oneofmyturns"]
[Black "crazy_but_lazy"]
[Result "1-0"]
[WhiteElo "2619"]
[BlackElo "2401"]
[TimeControl "180+1"]
[EndTime "10:41:30 PDT"]
[Termination "Oneofmyturns won on time"]

1. d4 {[%clk 0:03:00.9]} 1... d5 {[%clk 0:02:57.8]} 2. c4 {[%clk 0:03:01.2]}
2... e6 {[%clk 0:02:57.7]} 3. Nc3 {[%clk 0:02:59.7]} 3... a6 {[%clk 0:02:57.7]}
4. cxd5 {[%clk 0:02:58.1]} 4... exd5 {[%clk 0:02:57.5]} 5. Nf3 {[%clk 0:02:59]}
5... Nf6 {[%clk 0:02:51.7]} 6. Bg5 {[%clk 0:02:59.2]} 6... c6 {[%clk 0:02:48.6]}
7. e3 {[%clk 0:02:58.1]} 7... Bd6 {[%clk 0:02:42.9]} 8. Bd3 {[%clk 0:02:57.3]}
8... O-O {[%clk 0:02:39.4]} 9. O-O {[%clk 0:02:53]} 9... Be6 {[%clk 0:02:30]}
10. h3 {[%clk 0:02:47.9]} 10... Nbd7 {[%clk 0:02:28.9]} 11. Bf4 {[%clk
0:02:48.2]} 11... Qc7 {[%clk 0:02:27.3]} 12. Bxd6 {[%clk 0:02:47.3]} 12... Qxd6
{[%clk 0:02:28.2]} 13. Rc1 {[%clk 0:02:47.5]} 13... Rfe8 {[%clk 0:02:26.5]} 14.
Na4 {[%clk 0:02:43.2]} 14... h6 {[%clk 0:02:25.7]} 15. a3 {[%clk 0:02:35.1]}
15... Ne4 {[%clk 0:02:19.5]} 16. Qc2 {[%clk 0:02:14.9]} 16... Bf5 {[%clk
0:01:56.6]} 17. Rfd1 {[%clk 0:02:10.3]} 17... Re7 {[%clk 0:01:38.5]} 18. Nc5
{[%clk 0:01:58.1]} 18... Ndxc5 {[%clk 0:01:31.7]} 19. dxc5 {[%clk 0:01:58.4]}
19... Qc7 {[%clk 0:01:23.2]} 20. Nd4 {[%clk 0:01:57.6]} 20... Bh7 {[%clk
0:01:21.5]} 21. f3 {[%clk 0:01:53]} 21... Nf6 {[%clk 0:01:21.2]} 22. Bxh7+
{[%clk 0:01:53.9]} 22... Nxh7 {[%clk 0:01:21.6]} 23. Nf5 {[%clk 0:01:54.8]}
23... Re6 {[%clk 0:01:15]} 24. Qc3 {[%clk 0:01:46.5]} 24... Nf6 {[%clk
0:01:06.8]} 25. b4 {[%clk 0:01:41.9]} 25... Qe5 {[%clk 0:01:00.1]} 26. Nd6
{[%clk 0:01:29.1]} 26... Qxc3 {[%clk 0:00:44]} 27. Rxc3 {[%clk 0:01:28.5]} 27...
Re7 {[%clk 0:00:43.8]} 28. g4 {[%clk 0:01:22.8]} 28... g6 {[%clk 0:00:39.5]} 29.
Kf2 {[%clk 0:01:22.5]} 29... Ne8 {[%clk 0:00:39.6]} 30. Nxe8 {[%clk 0:01:21]}
30... Raxe8 {[%clk 0:00:40.5]} 31. a4 {[%clk 0:01:21.3]} 31... Kg7 {[%clk
0:00:36.6]} 32. Rd2 {[%clk 0:01:21.1]} 32... Ra8 {[%clk 0:00:35.3]} 33. Rb2
{[%clk 0:01:21.1]} 33... Re6 {[%clk 0:00:33.4]} 34. b5 {[%clk 0:01:17.7]} 34...
axb5 {[%clk 0:00:33.4]} 35. axb5 {[%clk 0:01:18.6]} 35... Ra1 {[%clk 0:00:23.7]}
36. bxc6 {[%clk 0:01:14.2]} 36... bxc6 {[%clk 0:00:24.6]} 37. Rcb3 {[%clk
0:00:54.1]} 37... Rh1 {[%clk 0:00:24.3]} 38. Rb7 {[%clk 0:00:50.7]} 38... Rh2+
{[%clk 0:00:21.8]} 39. Kg3 {[%clk 0:00:48]} 39... Rxb2 {[%clk 0:00:21.3]} 40.
Rxb2 {[%clk 0:00:48.9]} 40... Rxe3 {[%clk 0:00:21.8]} 41. Rb6 {[%clk 0:00:47.7]}
41... Re6 {[%clk 0:00:21.8]} 42. h4 {[%clk 0:00:46]} 42... Kf6 {[%clk
0:00:20.6]} 43. Rb7 {[%clk 0:00:43.3]} 43... g5 {[%clk 0:00:20.5]} 44. hxg5+
{[%clk 0:00:33.6]} 44... hxg5 {[%clk 0:00:21.4]} 45. Rc7 {[%clk 0:00:34.2]}
45... Ke5 {[%clk 0:00:21.3]} 46. Rxf7 {[%clk 0:00:33.8]} 46... Kd4 {[%clk
0:00:21.3]} 47. Rf5 {[%clk 0:00:33.3]} 47... Kxc5 {[%clk 0:00:21.5]} 48. Rxg5
{[%clk 0:00:33.2]} 48... Kc4 {[%clk 0:00:21.9]} 49. Rg8 {[%clk 0:00:31.4]} 49...
d4 {[%clk 0:00:22]} 50. Rd8 {[%clk 0:00:31.9]} 50... c5 {[%clk 0:00:21.7]} 51.
f4 {[%clk 0:00:31.7]} 51... Kc3 {[%clk 0:00:21.8]} 52. f5 {[%clk 0:00:32.1]}
52... Re1 {[%clk 0:00:21.9]} 53. f6 {[%clk 0:00:31.6]} 53... Rf1 {[%clk
0:00:21.5]} 54. g5 {[%clk 0:00:30.7]} 54... d3 {[%clk 0:00:22.1]} 55. Kg4 {[%clk
0:00:29.1]} 55... d2 {[%clk 0:00:22]} 56. Kh5 {[%clk 0:00:24]} 56... Kc2 {[%clk
0:00:21]} 57. g6 {[%clk 0:00:23.8]} 57... c4 {[%clk 0:00:20.9]} 58. g7 {[%clk
0:00:23.9]} 58... Rh1+ {[%clk 0:00:19.2]} 59. Kg6 {[%clk 0:00:24]} 59... Rg1+
{[%clk 0:00:19.5]} 60. Kh7 {[%clk 0:00:23]} 60... c3 {[%clk 0:00:20.4]} 61. f7
{[%clk 0:00:21.9]} 61... d1=Q {[%clk 0:00:19.7]} 62. Rxd1 {[%clk 0:00:21.5]}
62... Kxd1 {[%clk 0:00:20.6]} 63. f8=Q {[%clk 0:00:22.1]} 63... Rh1+ {[%clk
0:00:21.1]} 64. Kg8 {[%clk 0:00:21.7]} 64... Re1 {[%clk 0:00:16.2]} 65. Qf3+
{[%clk 0:00:20.7]} 65... Kd2 {[%clk 0:00:15.7]} 66. Qf4+ {[%clk 0:00:20.2]}
66... Re3 {[%clk 0:00:15.3]} 67. Kh8 {[%clk 0:00:15.7]} 67... c2 {[%clk
0:00:15]} 68. g8=Q {[%clk 0:00:15.9]} 68... c1=Q {[%clk 0:00:15.3]} 69. Qd5+
{[%clk 0:00:15.4]} 69... Ke2 {[%clk 0:00:15.5]} 70. Qg4+ {[%clk 0:00:10.2]}
70... Ke1 {[%clk 0:00:15.4]} 71. Qh1+ {[%clk 0:00:09.8]} 71... Kd2 {[%clk
0:00:15.8]} 72. Qgg2+ {[%clk 0:00:08.3]} 72... Kd3 {[%clk 0:00:06.1]} 73. Qxc1
{[%clk 0:00:07.4]} 73... Re8+ {[%clk 0:00:07]} 74. Kh7 {[%clk 0:00:07.4]} 74...
Re7+ {[%clk 0:00:07.4]} 75. Kh6 {[%clk 0:00:06.5]} 75... Re6+ {[%clk 0:00:08.1]}
76. Qg6+ {[%clk 0:00:06.2]} 1-0

[Event "*** SCC Grand Prix: Titled Tuesday Blitz"]
[Site "Chess.com"]
[Date "2020.06.02"]
[Round "4"]
[White "davekoenig"]
[Black "Fighter008"]
[Result "0-1"]
[WhiteElo "2159"]
[BlackElo "2565"]
[TimeControl "180+1"]
[EndTime "10:41:32 PDT"]
[Termination "Fighter008 won by resignation"]

1. e4 {[%clk 0:03:00.9]} 1... c5 {[%clk 0:02:59.1]} 2. Nc3 {[%clk 0:03:00.6]}
2... a6 {[%clk 0:02:58.7]} 3. g3 {[%clk 0:03:00.6]} 3... b5 {[%clk 0:02:58.5]}
4. Bg2 {[%clk 0:03:00.8]} 4... Bb7 {[%clk 0:02:58.7]} 5. a3 {[%clk 0:02:57.9]}
5... e6 {[%clk 0:02:58.5]} 6. Nge2 {[%clk 0:02:56.9]} 6... Nf6 {[%clk
0:02:48.5]} 7. O-O {[%clk 0:02:54.7]} 7... d5 {[%clk 0:02:48.5]} 8. exd5 {[%clk
0:02:48.9]} 8... Nxd5 {[%clk 0:02:46.9]} 9. Nxd5 {[%clk 0:02:40.6]} 9... Bxd5
{[%clk 0:02:47.8]} 10. d4 {[%clk 0:02:39.9]} 10... Bxg2 {[%clk 0:02:46.3]} 11.
Kxg2 {[%clk 0:02:39.3]} 11... Nc6 {[%clk 0:02:38.2]} 12. Be3 {[%clk 0:02:34.5]}
12... c4 {[%clk 0:02:37.2]} 13. Nf4 {[%clk 0:02:28.7]} 13... g5 {[%clk
0:02:28.8]} 14. Nh5 {[%clk 0:02:24.4]} 14... Qd5+ {[%clk 0:02:25.2]} 15. Qf3
{[%clk 0:02:22.9]} 15... Qxf3+ {[%clk 0:02:22.5]} 16. Kxf3 {[%clk 0:02:22.9]}
16... Be7 {[%clk 0:02:22.4]} 17. Rad1 {[%clk 0:02:09.9]} 17... O-O-O {[%clk
0:02:19.5]} 18. g4 {[%clk 0:02:02.3]} 18... Rd5 {[%clk 0:02:17.4]} 19. c3 {[%clk
0:02:01]} 19... f5 {[%clk 0:02:11.6]} 20. Rfe1 {[%clk 0:01:44]} 20... Rg8 {[%clk
0:01:58.9]} 21. h3 {[%clk 0:01:41.2]} 21... Kd7 {[%clk 0:01:44.5]} 22. Bc1
{[%clk 0:01:39.8]} 22... Rf8 {[%clk 0:01:27.7]} 23. Kg2 {[%clk 0:01:37.4]} 23...
f4 {[%clk 0:01:16.3]} 24. Re4 {[%clk 0:01:31.1]} 24... Nd8 {[%clk 0:01:15.8]}
25. Rde1 {[%clk 0:01:29.3]} 25... Rf7 {[%clk 0:01:15.9]} 26. f3 {[%clk
0:01:14.7]} 26... Bf8 {[%clk 0:01:08.4]} 27. h4 {[%clk 0:01:13.2]} 27... h6
{[%clk 0:01:03.3]} 28. hxg5 {[%clk 0:01:10]} 28... hxg5 {[%clk 0:01:04.2]} 29.
Re5 {[%clk 0:01:10.3]} 29... Bg7 {[%clk 0:00:57]} 30. Rxd5+ {[%clk 0:01:08.7]}
30... exd5 {[%clk 0:00:57.1]} 31. Nxg7 {[%clk 0:01:08.6]} 31... Rxg7 {[%clk
0:00:56.7]} 32. Re5 {[%clk 0:01:08.7]} 32... Kd6 {[%clk 0:00:55.4]} 33. Rf5
{[%clk 0:00:57.2]} 33... Ne6 {[%clk 0:00:53.8]} 34. Rf6 {[%clk 0:00:55.9]} 34...
Re7 {[%clk 0:00:48]} 35. Kf2 {[%clk 0:00:53.1]} 35... Rh7 {[%clk 0:00:46.4]} 36.
Kg2 {[%clk 0:00:52.8]} 36... Ke7 {[%clk 0:00:46.5]} 37. Rf5 {[%clk 0:00:51.2]}
37... Kd6 {[%clk 0:00:47.1]} 38. Rf6 {[%clk 0:00:50.5]} 38... a5 {[%clk
0:00:46.8]} 39. Bd2 {[%clk 0:00:49.3]} 39... Rd7 {[%clk 0:00:46.3]} 40. Rg6
{[%clk 0:00:47]} 40... Rd8 {[%clk 0:00:42.8]} 41. Be1 {[%clk 0:00:42.4]} 41...
Ke7 {[%clk 0:00:42.3]} 42. Rh6 {[%clk 0:00:40.5]} 42... Rg8 {[%clk 0:00:40.8]}
43. Rh7+ {[%clk 0:00:38.5]} 43... Ng7 {[%clk 0:00:38.8]} 44. Bd2 {[%clk
0:00:36.3]} 44... Kf7 {[%clk 0:00:36]} 45. Rh6 {[%clk 0:00:35.9]} 45... Ne6
{[%clk 0:00:36]} 46. Rh7+ {[%clk 0:00:35.4]} 46... Rg7 {[%clk 0:00:35.4]} 47.
Rh8 {[%clk 0:00:35.6]} 47... Nf8 {[%clk 0:00:35.7]} 48. Rh6 {[%clk 0:00:35.6]}
48... Ng6 {[%clk 0:00:35.1]} 49. Kf2 {[%clk 0:00:32.4]} 49... Rg8 {[%clk
0:00:32.1]} 50. Rh5 {[%clk 0:00:30.5]} 50... Nf8 {[%clk 0:00:28.7]} 51. Rh6
{[%clk 0:00:28.4]} 51... Rg6 {[%clk 0:00:28.4]} 52. Rh1 {[%clk 0:00:26.2]} 52...
Rg7 {[%clk 0:00:27.8]} 53. Rh6 {[%clk 0:00:24.3]} 53... Ne6 {[%clk 0:00:26.6]}
54. Rh8 {[%clk 0:00:22.2]} 54... Rg8 {[%clk 0:00:26.5]} 55. Rh7+ {[%clk
0:00:22.4]} 55... Ng7 {[%clk 0:00:25.9]} 56. Rh6 {[%clk 0:00:22.5]} 56... Ne6
{[%clk 0:00:24]} 57. Rh7+ {[%clk 0:00:20.9]} 57... Rg7 {[%clk 0:00:24.6]} 58.
Rh8 {[%clk 0:00:21.2]} 58... Nf8 {[%clk 0:00:23.9]} 59. Rh6 {[%clk 0:00:21.4]}
59... Rg6 {[%clk 0:00:21.6]} 60. Rh5 {[%clk 0:00:20]} 60... Kf6 {[%clk
0:00:18.7]} 61. Rh8 {[%clk 0:00:19.4]} 61... Kf7 {[%clk 0:00:18.8]} 62. Rh1
{[%clk 0:00:18.6]} 62... Re6 {[%clk 0:00:17.5]} 63. Rh5 {[%clk 0:00:16.9]} 63...
Kg6 {[%clk 0:00:17.4]} 64. Rh8 {[%clk 0:00:17]} 64... Kg7 {[%clk 0:00:17.7]} 65.
Rh5 {[%clk 0:00:16.4]} 65... Nh7 {[%clk 0:00:17.7]} 66. Rh1 {[%clk 0:00:14.4]}
66... Nf6 {[%clk 0:00:15.8]} 67. Rh2 {[%clk 0:00:12.2]} 67... Re8 {[%clk
0:00:15.3]} 68. Rh1 {[%clk 0:00:10.8]} 68... Rh8 {[%clk 0:00:15.4]} 69. Re1
{[%clk 0:00:10.8]} 69... Rh2+ {[%clk 0:00:15.4]} 70. Kf1 {[%clk 0:00:10.1]}
70... Rxd2 {[%clk 0:00:15.3]} 71. Re7+ {[%clk 0:00:10.1]} 71... Kg6 {[%clk
0:00:15]} 72. Ra7 {[%clk 0:00:10.1]} 72... Rxb2 {[%clk 0:00:14.7]} 73. Rxa5
{[%clk 0:00:10.3]} 73... Rb3 {[%clk 0:00:15.1]} 74. Ke2 {[%clk 0:00:09.3]} 74...
Rxc3 {[%clk 0:00:14.7]} 75. Rxb5 {[%clk 0:00:09.1]} 75... Rxa3 {[%clk
0:00:14.7]} 76. Rc5 {[%clk 0:00:08.4]} 76... Re3+ {[%clk 0:00:14.3]} 77. Kf2
{[%clk 0:00:08.2]} 77... Rd3 {[%clk 0:00:14.9]} 78. Rc6 {[%clk 0:00:08.3]} 78...
Rxd4 {[%clk 0:00:15.4]} 0-1

[Event "*** SCC Grand Prix: Titled Tuesday Blitz"]
[Site "Chess.com"]
[Date "2020.06.02"]
[Round "4"]
[White "FairChess_on_YouTube"]
[Black "Revnov"]
[Result "1-0"]
[WhiteElo "3008"]
[BlackElo "2693"]
[TimeControl "180+1"]
[EndTime "10:41:45 PDT"]
[Termination "FairChess_on_YouTube won on time"]

1. e4 {[%clk 0:03:00.9]} 1... e5 {[%clk 0:03:00.1]} 2. Nf3 {[%clk 0:03:00.4]}
2... d6 {[%clk 0:03:00.7]} 3. Bc4 {[%clk 0:02:55.9]} 3... Nf6 {[%clk 0:03:00.5]}
4. d3 {[%clk 0:02:54.3]} 4... Be7 {[%clk 0:03:00.8]} 5. O-O {[%clk 0:02:53.2]}
5... O-O {[%clk 0:03:01.2]} 6. h3 {[%clk 0:02:52.5]} 6... Be6 {[%clk 0:03:00.4]}
7. Bxe6 {[%clk 0:02:48.4]} 7... fxe6 {[%clk 0:03:01.3]} 8. c3 {[%clk 0:02:48.6]}
8... Qd7 {[%clk 0:02:54.5]} 9. Re1 {[%clk 0:02:47.8]} 9... Nc6 {[%clk 0:02:53]}
10. Nbd2 {[%clk 0:02:47.5]} 10... h6 {[%clk 0:02:49.6]} 11. Nf1 {[%clk
0:02:47.5]} 11... Rf7 {[%clk 0:02:45.2]} 12. Ng3 {[%clk 0:02:47.3]} 12... Raf8
{[%clk 0:02:44.6]} 13. b4 {[%clk 0:02:41.1]} 13... Nh7 {[%clk 0:02:33.9]} 14.
Be3 {[%clk 0:02:37.9]} 14... a6 {[%clk 0:02:12.4]} 15. a4 {[%clk 0:02:37]} 15...
Bf6 {[%clk 0:02:02.1]} 16. Nh5 {[%clk 0:02:26.6]} 16... Ne7 {[%clk 0:01:59.7]}
17. d4 {[%clk 0:02:24.4]} 17... exd4 {[%clk 0:01:47.4]} 18. cxd4 {[%clk
0:02:25.3]} 18... Ng6 {[%clk 0:01:47.3]} 19. Qb3 {[%clk 0:02:17.4]} 19... Bd8
{[%clk 0:01:38.6]} 20. Nd2 {[%clk 0:02:16]} 20... Bg5 {[%clk 0:01:28.2]} 21. f3
{[%clk 0:02:08.1]} 21... Nh4 {[%clk 0:01:23]} 22. Re2 {[%clk 0:01:59.3]} 22...
Kh8 {[%clk 0:01:21.3]} 23. Rf1 {[%clk 0:01:56.8]} 23... Bxe3+ {[%clk 0:00:56.8]}
24. Qxe3 {[%clk 0:01:56.1]} 24... Qxa4 {[%clk 0:00:54.3]} 25. g3 {[%clk
0:01:39]} 25... Qb5 {[%clk 0:00:50.9]} 26. Nf4 {[%clk 0:01:30.5]} 26... Rxf4
{[%clk 0:00:50.7]} 27. gxf4 {[%clk 0:01:30.3]} 27... Ng6 {[%clk 0:00:51.2]} 28.
Rh2 {[%clk 0:01:08.1]} 28... Nxf4 {[%clk 0:00:50.2]} 29. h4 {[%clk 0:01:06]}
29... e5 {[%clk 0:00:42.9]} 30. dxe5 {[%clk 0:01:04.3]} 30... Qxe5 {[%clk
0:00:37.8]} 31. Nc4 {[%clk 0:01:02]} 31... Qb5 {[%clk 0:00:37.1]} 32. Qc3 {[%clk
0:00:53.3]} 32... Nf6 {[%clk 0:00:35.3]} 33. Kh1 {[%clk 0:00:53.4]} 33... N6h5
{[%clk 0:00:35.1]} 34. Rg1 {[%clk 0:00:52.9]} 34... Rf7 {[%clk 0:00:35]} 35. e5
{[%clk 0:00:46.6]} 35... Qc6 {[%clk 0:00:33.7]} 36. Qb3 {[%clk 0:00:39.4]} 36...
d5 {[%clk 0:00:30]} 37. Na5 {[%clk 0:00:36.2]} 37... Qb5 {[%clk 0:00:25.8]} 38.
Qc2 {[%clk 0:00:31.8]} 38... Qxb4 {[%clk 0:00:23.1]} 39. Nb3 {[%clk 0:00:32.3]}
39... b6 {[%clk 0:00:22.5]} 40. e6 {[%clk 0:00:24.5]} 40... Nxe6 {[%clk
0:00:20.8]} 41. Qg6 {[%clk 0:00:24.5]} 41... Rf6 {[%clk 0:00:18.5]} 42. Qxh5
{[%clk 0:00:23.1]} 42... Qxb3 {[%clk 0:00:18.7]} 43. Re2 {[%clk 0:00:22.9]}
43... d4 {[%clk 0:00:17.2]} 44. f4 {[%clk 0:00:19.8]} 44... Qc4 {[%clk
0:00:12.9]} 45. f5 {[%clk 0:00:13.7]} 45... Qc6+ {[%clk 0:00:12.6]} 46. Kh2
{[%clk 0:00:13.2]} 46... Nf8 {[%clk 0:00:10.2]} 47. Re8 {[%clk 0:00:11.2]} 47...
Qd6+ {[%clk 0:00:09.2]} 48. Kh3 {[%clk 0:00:10.1]} 48... Kh7 {[%clk 0:00:09.4]}
49. Qg4 {[%clk 0:00:10.1]} 49... Rf7 {[%clk 0:00:07.8]} 50. h5 {[%clk
0:00:09.7]} 50... Kg8 {[%clk 0:00:07.2]} 51. Qg6 {[%clk 0:00:09.5]} 51... Qf6
{[%clk 0:00:03.8]} 52. Kg4 {[%clk 0:00:06.1]} 52... c5 {[%clk 0:00:03.2]} 53.
Rge1 {[%clk 0:00:06]} 53... d3 {[%clk 0:00:02.2]} 54. R1e4 {[%clk 0:00:03.3]}
54... c4 {[%clk 0:00:02.1]} 55. Qxf6 {[%clk 0:00:03.5]} 55... Rxf6 {[%clk
0:00:02.2]} 56. Rxc4 {[%clk 0:00:03.5]} 56... b5 {[%clk 0:00:03.1]} 57. Rd4
{[%clk 0:00:03.6]} 57... Kf7 {[%clk 0:00:03.4]} 58. Ra8 {[%clk 0:00:03.4]} 58...
Rc6 {[%clk 0:00:03.2]} 59. Rxd3 {[%clk 0:00:03]} 59... Kf6 {[%clk 0:00:02.7]}
60. Rd4 {[%clk 0:00:03.3]} 60... Kf7 {[%clk 0:00:02.4]} 61. Kf4 {[%clk
0:00:03.5]} 61... Nh7 {[%clk 0:00:02.2]} 62. Ra7+ {[%clk 0:00:03.5]} 62... Ke8
{[%clk 0:00:02.1]} 63. Rxg7 {[%clk 0:00:02.7]} 63... Nf6 {[%clk 0:00:02.5]} 64.
Rg6 {[%clk 0:00:02.9]} 64... Nxh5+ {[%clk 0:00:02.1]} 65. Ke5 {[%clk 0:00:03.5]}
65... Rxg6 {[%clk 0:00:02.5]} 66. fxg6 {[%clk 0:00:04.4]} 66... b4 {[%clk
0:00:02.6]} 67. Ke6 {[%clk 0:00:03.9]} 67... Ng7+ {[%clk 0:00:02.9]} 68. Kf6
{[%clk 0:00:04.2]} 68... Nh5+ {[%clk 0:00:03.8]} 69. Ke6 {[%clk 0:00:04.6]}
69... Ng7+ {[%clk 0:00:04.3]} 70. Ke5 {[%clk 0:00:05.1]} 70... Nh5 {[%clk
0:00:03.5]} 71. Rxb4 {[%clk 0:00:05.3]} 71... Kf8 {[%clk 0:00:03.8]} 72. Rb7
{[%clk 0:00:05.3]} 72... Kg8 {[%clk 0:00:03.8]} 73. Ke6 {[%clk 0:00:05.6]} 73...
Ng7+ {[%clk 0:00:04]} 74. Ke7 {[%clk 0:00:05.9]} 74... Nh5 {[%clk 0:00:04.9]}
75. Ke6 {[%clk 0:00:06.2]} 75... Ng7+ {[%clk 0:00:05.1]} 76. Ke5 {[%clk
0:00:06.6]} 76... Nh5 {[%clk 0:00:05.6]} 77. Ra7 {[%clk 0:00:07.1]} 77... a5
{[%clk 0:00:05.5]} 78. Kf5 {[%clk 0:00:06.7]} 78... a4 {[%clk 0:00:04.8]} 79.
Rxa4 {[%clk 0:00:06.3]} 79... Ng7+ {[%clk 0:00:05.3]} 80. Kf6 {[%clk 0:00:06]}
80... Nh5+ {[%clk 0:00:05.5]} 81. Kf5 {[%clk 0:00:06.4]} 81... Ng7+ {[%clk
0:00:05.8]} 82. Kg4 {[%clk 0:00:06.9]} 82... Ne6 {[%clk 0:00:05.7]} 83. Ra7
{[%clk 0:00:06.7]} 83... Ng5 {[%clk 0:00:03.6]} 84. Kh5 {[%clk 0:00:06.4]} 84...
Ne4 {[%clk 0:00:01.9]} 85. Kxh6 {[%clk 0:00:06.5]} 1-0